Cogmind - Beta 10.2 @@@ ROGUE MODE // 2021.01.02 @ 22:08:59 // AFD2018/Launchers Player: Michael Result: Self-destructed Performance ------------- Evolutions (4) 2000 Regions Visited (11) 2200 Robots Destroyed (198) 990 Value Destroyed (4389) 4389 Prototype IDs (5) 100 Alien Tech Used (0) 0 Bonus (1296) 1296 TOTAL SCORE: 10975 Bonus ------- High Alert Combat Kills 848 Follower Combat Kills 148 Aligned with FarCom 300 Cogmind --------- Core Integrity 10/850 Matter 210/300 Energy 100/100 System Corruption 0% Temperature Cool (0) Movement Core (100) Ox1 Location -6/Factory Parts ------- > --- POWER (2) -------- (None) > --- PROPULSION (5) --- (None) > --- UTILITY (5) ------ (None) > --- WEAPON (3) ------- Improved Grenade Launcher > --- INVENTORY (4) ---- Medium Storage Unit Medium Storage Unit Improved EM Pulse Cannon Long-range Missile Launcher Peak State ------------ > --- POWER ------------ Heavy Ion Engine Light Nuclear Core > --- PROPULSION ------- Armored Wheel Armored Wheel Armored Wheel Armored Wheel > --- UTILITY ---------- Medium Storage Unit Medium Storage Unit Signal Interpreter Component Analysis Suite > --- WEAPON ----------- Advanced EMP Blaster Proton Missile Launcher Missile Launcher > --- INVENTORY -------- Wheel Wheel Medium Matter Pod Medium Matter Pod Improved Grenade Launcher Improved Grenade Launcher Missile Launcher Missile Launcher Heavy Rocket Launcher Heavy Rocket Launcher Heavy Rocket Launcher Heavy Missile Launcher [Rating: 35] Favorites ----------- Power Light Nuclear Core Engine Heavy Ion Engine Power Core Light Nuclear Core Propulsion Wheel Wheel Wheel Utility Medium Storage Unit Device Structural Scanner Storage Medium Storage Unit Processor Signal Interpreter Protection Hardened Medium Armor Plating Weapon EMP Blaster Energy Gun Heavy EM Pulse Gun Energy Cannon Improved EM Pulse Cannon Ballistic Gun Enhanced Autogun Launcher EMP Blaster Build | -11 -10 -10 -9 -9 -9 -8 -8 -7 -7 -7 -6 ------- Run | Scr Mat Min Mat Min Exi Min Mat Fac Was Fac Fac Slots Evolved 8 | . . . 2 . . . 2 2 . . 2 Power 1 | . . . . . . . . 1 . . . Propulsion 3 | . . . . . . . 2 . . . 1 Utility 3 | . . . 1 . . . . 1 . . 1 Weapon 1 | . . . 1 . . . . . . . . Parts Attached 194 | 1 12 8 26 4 1 . 26 24 3 68 21 Power 15 | . 1 1 1 . . . 3 1 . 7 1 Engine 6 | . 1 . . . . . 2 . . 3 . Core 9 | . . 1 1 . . . 1 1 . 4 1 Reactor . | . . . . . . . . . . . . Propulsion 45 | . 4 4 7 1 . . 6 5 3 9 6 Treads . | . . . . . . . . . . . . Leg . | . . . . . . . . . . . . Wheel 45 | . 4 4 7 1 . . 6 5 3 9 6 Hover . | . . . . . . . . . . . . Flight . | . . . . . . . . . . . . Utility 32 | . 3 1 3 . . . . 3 . 19 3 Device 14 | . 1 . 1 . . . . 3 . 9 . Storage 6 | . 1 1 2 . . . . . . 2 . Processor 1 | . 1 . . . . . . . . . . Hackware . | . . . . . . . . . . . . Protection 11 | . . . . . . . . . . 8 3 Artifact . | . . . . . . . . . . . . Weapon 102 | 1 4 2 15 3 1 . 17 15 . 33 11 Energy Gun 11 | . . . 7 2 . . 2 . . . . Energy Cannon 5 | . . . . . . . . . . 2 3 Ballistic Gun 1 | . . . . . . . 1 . . . . Ballistic Cannon . | . . . . . . . . . . . . Launcher 85 | 1 4 2 8 1 1 . 14 15 . 31 8 Special Weapon . | . . . . . . . . . . . . Impact Weapon . | . . . . . . . . . . . . Slashing Weapon . | . . . . . . . . . . . . Piercing Weapon . | . . . . . . . . . . . . Special Melee Weapon . | . . . . . . . . . . . . Unidentified Prototypes 5 | . . . 1 . . . 3 . . 1 . Parts Lost 41 | . 4 2 2 . . . 4 1 6 11 11 Power 5 | . . 1 . . . . 1 . 1 1 1 Propulsion 21 | . 2 1 1 . . . 1 . 3 8 5 Utility 6 | . . . . . . . . . 1 1 4 Weapon 9 | . 2 . 1 . . . 2 1 1 1 1 Highest Loss Streak 6 | . 3 1 1 . . . 2 1 6 6 6 Average Slot Usage (%) 77 | . 37 84 98 100 100 100 98 99 81 66 50 Engine 3 | . 2 10 . . . . 4 7 5 3 . Core 5 | . . 3 11 11 11 11 3 7 5 5 2 Wheel 21 | . 17 28 22 22 22 22 35 30 24 14 18 Device 6 | . 1 . 1 . . . . 7 5 14 4 Storage 10 | . . 13 18 22 22 22 18 15 12 4 4 Processor 4 | . 2 14 11 11 11 11 9 7 5 . . Protection 2 | . . . . . . . . . . 2 9 Energy Gun 2 | . . . 9 4 18 11 . . . . . Launcher 18 | . 14 14 23 28 14 22 25 22 18 21 3 Naked Turns 264 | . 1 . . . . . . . 40 9 214 Heaviest Build 58 | 3 9 16 33 31 32 32 42 50 49 54 58 Greatest Support 54 | 3 20 20 20 20 20 20 40 48 48 42 54 Greatest Overweight (x) 3 | . . . 2 1 1 1 1 1 1 3 3 Average Overweight (x) . | . . . 1 1 1 1 . . . . . Largest Inventory Capacity 12 | 4 4 8 12 12 12 12 12 12 12 8 8 Average Capacity 8 | 4 4 7 10 12 12 12 12 12 10 6 7 Most Carried 12 | 4 4 8 12 12 12 12 12 12 12 8 8 Average Carried 8 | 2 3 7 10 12 11 12 11 11 10 6 6 Final Capacity 12 | 4 4 8 12 12 12 12 12 12 4 8 4 Final Carried 12 | 4 4 8 12 12 12 12 11 12 4 6 4 Class Distribution -------------------- 70% | Scavenger-Mutant 25% | Mutant Dominant Class ---------------- Mutant | -10/Materials Scavenger-Mutant | -10/Mines Scavenger-Mutant | -9/Materials Scavenger-Mutant | -9/Mines Scavenger-Mutant | -9/Exiles Scavenger-Mutant | -8/Mines Scavenger-Mutant | -8/Materials Scavenger-Mutant | -7/Factory Scavenger-Mutant | -7/Waste Mutant | -7/Factory Scavenger-Mutant | -6/Factory Resources | -11 -10 -10 -9 -9 -9 -8 -8 -7 -7 -7 -6 ----------- Run | Scr Mat Min Mat Min Exi Min Mat Fac Was Fac Fac Matter Collected 4841 | . 271 379 633 43 . 24 536 759 59 1513 624 Remotely 1726 | . . . 246 . . . . 757 . 723 . Salvage Created 6216 | . 263 240 1085 73 . 24 1038 922 . 1698 873 Parts 297 | . 22 23 52 5 . 3 53 37 . 64 38 Haulers Intercepted 6 | . 1 . 1 . . . 2 . . 2 . Recyclers Shooed 12 | . . . 2 . . . 1 3 . . 6 Parts Field Recycled . | . . . . . . . . . . . . Retrieved Matter . | . . . . . . . . . . . . Parts Self-Destructed . | . . . . . . . . . . . . Prevented . | . . . . . . . . . . . . Kills | -11 -10 -10 -9 -9 -9 -8 -8 -7 -7 -7 -6 ------- Run | Scr Mat Min Mat Min Exi Min Mat Fac Was Fac Fac Combat Hostiles Destroyed 92 | . 10 10 20 . . . 13 10 . 21 8 Melee 1 | . 1 . . . . . . . . . . Guns 3 | . . . 3 . . . . . . . . AOE 83 | . 9 10 16 . . . 12 10 . 18 8 Classes Destroyed 16 | . 5 2 5 . . . 2 1 . 1 . Worker 41 | . 4 4 4 1 . . 4 8 . 6 10 Builder 18 | . . . 4 . . 1 7 1 . 2 3 Tunneler 6 | . . 1 1 2 . . . 1 . 1 . Hauler 6 | . 1 . 1 . . . 2 . . 2 . Recycler 23 | . . 2 3 . . . 3 5 . 7 3 Mechanic 3 | . . . . . . . 1 1 . . 1 Operator 1 | . . . 1 . . . . . . . . Watcher 8 | . 2 . . . . . 3 1 . 1 1 Swarmer 25 | . 3 9 3 . . . 4 . . 3 3 Grunt 35 | . 7 1 13 . . . 3 5 . 5 1 Brawler 7 | . . . 1 . . . . . . 3 3 Duelist 1 | . . . 1 . . . . . . . . Protector 1 | . . . . . . . . . . 1 . Sentry 13 | . . . 2 . . . 5 2 . 4 . Hunter 1 | . . . . . . . 1 . . . . Programmer 9 | . . . . . . . . 3 . 5 1 Best Kill Streak 13 | . 8 5 9 2 . 1 13 8 . 5 8 Combat Bots Only 6 | . 6 4 6 . . . 5 3 . 5 5 Max Kills in Single Turn 4 | . 3 2 4 1 . 1 4 4 . 3 3 Gunslinging . | . . . . . . . . . . . . Exploded 3 | . 2 2 2 . . . 3 2 . 3 2 Melee 1 | . 1 . . . . . . . . . . Uniques/NPCs Destroyed . | . . . . . . . . . . . . Combat | -11 -10 -10 -9 -9 -9 -8 -8 -7 -7 -7 -6 -------- Run | Scr Mat Min Mat Min Exi Min Mat Fac Was Fac Fac Damage Taken 6106 | . 467 230 444 . . . 634 392 237 1265 2437 Core 1467 | . 177 58 9 . . . 75 22 75 211 840 Absorbed by Shields . | . . . . . . . . . . . . Core Remaining (%) 69 | 100 . 6 . . . 97 86 . . 56 . Volleys Fired 305 | . 29 13 51 7 . 1 31 40 . 86 47 Largest 3 | . 1 1 3 2 . 1 3 3 . 3 2 Hottest 138 | . 30 30 99 101 . 33 105 114 . 138 138 Shots Fired 418 | . 29 13 89 14 . 1 43 51 . 123 55 Gun 75 | . . . 54 14 . . 7 . . . . Cannon 17 | . . . . . . . . . . 2 15 Launcher 326 | . 29 13 35 . . 1 36 51 . 121 40 Special . | . . . . . . . . . . . . Kinetic . | . . . . . . . . . . . . Thermal 7 | . . . . 7 . . . . . . . Explosive 174 | . 29 13 20 . . . 16 18 . 49 29 Electromagnetic 237 | . . . 69 7 . 1 27 33 . 74 26 Robot Hit Streak 23 | . 23 4 11 11 . 2 4 3 . 9 7 Robot Miss Streak 6 | . . 3 4 2 . . 3 4 . 6 2 Penetration Max . | . . . . . . . . . . . . Secondary Targets . | . . . . . . . . . . . . Shots Hit Robots 227 | . 23 5 51 7 . 1 21 18 . 71 30 Core Hits 322 | . 31 19 44 3 . 1 39 53 . 69 63 Critical Hits . | . . . . . . . . . . . . Critical Kills . | . . . . . . . . . . . . Critical Parts Destroyed . | . . . . . . . . . . . . Melee Attacks . | . . . . . . . . . . . . Impact . | . . . . . . . . . . . . Slashing . | . . . . . . . . . . . . Piercing . | . . . . . . . . . . . . Sneak Attacks . | . . . . . . . . . . . . Combat Hostiles . | . . . . . . . . . . . . Follow-up Attacks . | . . . . . . . . . . . . Damage Inflicted 16235 | . 1506 800 2122 99 . 22 2110 2624 . 3876 3076 Guns 588 | . . . 411 99 . . 78 . . . . Cannons 333 | . . . . . . . . . . 62 271 Explosions 15208 | . 1449 800 1711 . . 22 2032 2624 . 3814 2756 Melee . | . . . . . . . . . . . . Ramming 106 | . 57 . . . . . . . . . 49 Kinetic . | . . . . . . . . . . . . Thermal 1221 | . . . 78 16 . . 252 474 . 34 367 Explosive 8994 | . 1449 800 1243 . . . 477 840 . 2151 2034 Electromagnetic 5914 | . . . 801 83 . 22 1381 1310 . 1691 626 Impact . | . . . . . . . . . . . . Slashing . | . . . . . . . . . . . . Piercing . | . . . . . . . . . . . . Highest Corruption 6 | . 2 2 . . . . . . . 6 . Average Corruption 2 | . 2 2 . . . . . . . 3 . Corruption Purged . | . . . . . . . . . . . . Effects 49 | . 6 7 . . . . . . . 36 . Message Errors 17 | . 4 5 . . . . . . . 8 . Matter Fused 8 | . . . . . . . . . . 8 . Heat Flow Errors 8 | . . 2 . . . . . . . 6 . Energy Discharges 4 | . . . . . . . . . . 4 . Data Loss (minor) 6 | . 2 . . . . . . . . 4 . Targeting Errors 6 | . . . . . . . . . . 6 . Overload Shots . | . . . . . . . . . . . . Overflow Damage 641 | . 41 1 68 . . . 68 186 . 142 135 Projectiles . | . . . . . . . . . . . . Explosions 641 | . 41 1 68 . . . 68 186 . 142 135 Melee . | . . . . . . . . . . . . Knockbacks 1 | . . . . . . . . . . . 1 Impact 1 | . . . . . . . . . . . 1 Kinetic . | . . . . . . . . . . . . Secondary . | . . . . . . . . . . . . Self-Inflicted Damage 812 | . 35 79 . . . . 119 52 . 357 170 Shots 35 | . 2 3 . . . . 7 6 . 12 5 Rammed 35 | . 28 . . . . . . . . . 7 Targets Rammed 35 | . 28 . . . . . . . . . 7 Kicked . | . . . . . . . . . . . . Crushed . | . . . . . . . . . . . . Highest Temperature 263 | . 5 231 186 72 . . 263 81 . 199 99 Average Temperature 48 | . 5 104 51 31 . . 42 29 . 55 32 Received Heat Transfer 1425 | . 213 36 177 . . . 180 90 . 222 507 Siege Activations . | . . . . . . . . . . . . Robots Corrupted 10 | . . . 1 . . . 4 2 . 3 . Combat Hostiles 5 | . . . 1 . . . 1 . . 3 . Parts Fried 37 | . . . 2 1 . . 11 11 . 10 2 Impact Corruptions . | . . . . . . . . . . . . Robots Melted . | . . . . . . . . . . . . Combat Hostiles . | . . . . . . . . . . . . Parts Melted . | . . . . . . . . . . . . Heat Transferred 1037 | . . . 150 37 . . 300 300 . 100 150 Parts Sabotaged . | . . . . . . . . . . . . Parts Stolen . | . . . . . . . . . . . . Parts Stripped . | . . . . . . . . . . . . Power Chain Reactions 19 | . . . 3 . . . 8 2 . 2 4 Missiles Intercepted . | . . . . . . . . . . . . Alert | -11 -10 -10 -9 -9 -9 -8 -8 -7 -7 -7 -6 ------- Run | Scr Mat Min Mat Min Exi Min Mat Fac Was Fac Fac Peak Influence 1405 | . 353 348 632 261 . 5 569 682 268 1405 1288 Initial 673 | . . 6 79 246 . . 1 224 238 145 673 Average 432 | . 105 147 326 246 . . 295 422 242 493 893 Maximum Alert Level 4 | . 1 1 2 1 . . 2 2 1 4 4 Low Security (%) 30 | 100 84 64 26 . . 100 25 . . 42 . Level 1 33 | . 15 35 37 99 . . 47 51 100 25 . Level 2 13 | . . . 36 . . . 26 48 . . 12 Level 3 12 | . . . . . . . . . . 7 74 Level 4 9 | . . . . . . . . . . 24 12 Level 5 . | . . . . . . . . . . . . High Security . | . . . . . . . . . . . . Max Security . | . . . . . . . . . . . . Squads Dispatched 34 | . 1 . 4 . . . 4 6 . 12 7 Investigation 3 | . . . 1 . . . . . . 1 1 Extermination 9 | . . . . . . . . 3 . 5 1 Reinforcement 14 | . 1 . 3 . . . 1 3 . 3 3 Assault 3 | . . . . . . . . . . 2 1 Garrison 5 | . . . . . . . 3 . . 1 1 Intercept . | . . . . . . . . . . . . Construction Impeded 3 | . . . . . . . 1 1 . . 1 Haulers Reinforced 2 | . . . . . . . . 1 . . 1 Stealth | -11 -10 -10 -9 -9 -9 -8 -8 -7 -7 -7 -6 --------- Run | Scr Mat Min Mat Min Exi Min Mat Fac Was Fac Fac Distress Signals 23 | . 3 . 9 . . . 6 1 . 2 2 Communications Jammed . | . . . . . . . . . . . . Distress Signals . | . . . . . . . . . . . . Times Spotted 181 | . 20 11 32 . . . 25 14 6 39 34 Peak Tracking Total 7 | . 6 3 6 . . . 7 4 6 5 6 Tactical Retreats 26 | . 2 . 2 . . . 3 1 . 5 13 Traps | -11 -10 -10 -9 -9 -9 -8 -8 -7 -7 -7 -6 ------- Run | Scr Mat Min Mat Min Exi Min Mat Fac Was Fac Fac Traps Triggered 10 | . . . 1 . . . . 6 . 2 1 Indirectly 2 | . . . . . . . . 1 . . 1 Trap Hack Attempts . | . . . . . . . . . . . . Triggered . | . . . . . . . . . . . . Disarmed . | . . . . . . . . . . . . Reprogrammed . | . . . . . . . . . . . . Reused . | . . . . . . . . . . . . Traps Extracted . | . . . . . . . . . . . . Installed . | . . . . . . . . . . . . Triggered 2 | . . . . . . . . 1 . . 1 Machines | -11 -10 -10 -9 -9 -9 -8 -8 -7 -7 -7 -6 ---------- Run | Scr Mat Min Mat Min Exi Min Mat Fac Was Fac Fac Machines Disabled 36 | . 1 . 2 . . . 2 15 . 10 6 Max in Single Turn 5 | . 1 . 1 . . . 1 5 . 3 2 Garrison Access 2 | . . . . . . . . . . 1 1 Machines Sabotaged . | . . . . . . . . . . . . Garrisons Compromised . | . . . . . . . . . . . . Overloaded Fab Kills . | . . . . . . . . . . . . Fab Network Shutdowns . | . . . . . . . . . . . . Hacking | -11 -10 -10 -9 -9 -9 -8 -8 -7 -7 -7 -6 --------- Run | Scr Mat Min Mat Min Exi Min Mat Fac Was Fac Fac Machines Accessed 55 | . 8 . 6 . 1 . 4 8 . 19 9 Terminals 30 | . 5 . 4 . . . 1 3 . 11 6 Fabricators 4 | . . . . . . . . 2 . 1 1 Repair Stations 4 | . 1 . 1 . . . . 1 . 1 . Recycling Units 9 | . 2 . 1 . . . 1 1 . 4 . Scanalyzers 4 | . . . . . . . 1 1 . 1 1 Garrison Access 3 | . . . . . . . 1 . . 1 1 Total Hacks 124 | . 15 . 20 . 1 . 10 25 . 37 16 Successful 66 | . 11 . 10 . 1 . 6 19 . 11 8 Failed 58 | . 4 . 10 . . . 4 6 . 26 8 Catastrophic 10 | . . . 1 . . . . 1 . 5 3 Database Lockouts . | . . . . . . . . . . . . Manual 39 | . 3 . 9 . 1 . 3 2 . 14 7 Terminals 64 | . 10 . 15 . . . 3 5 . 21 10 Fabricators 13 | . . . . . . . . 6 . 5 2 Repair Stations 10 | . 2 . 4 . . . . 2 . 2 . Recycling Units 13 | . 3 . 1 . . . 1 2 . 6 . Scanalyzers 19 | . . . . . . . 4 10 . 2 3 Garrison Access 4 | . . . . . . . 2 . . 1 1 Terminal Hacks 19 | . 6 . 6 . 1 . . 2 . 2 2 Record 1 | . . . . . 1 . . . . . . Part Schematic 3 | . . . 1 . . . . . . 1 1 Branch Access Points 3 | . 1 . 1 . . . . 1 . . . Emergency Access Points 3 | . 1 . 1 . . . . . . . 1 Unreport Threat 1 | . 1 . . . . . . . . . . Locate Traps 4 | . 2 . 1 . . . . . . 1 . Hauler Manifests 1 | . 1 . . . . . . . . . . Zone Layout 3 | . . . 2 . . . . 1 . . . Fabricator Hacks 8 | . . . . . . . . 4 . 2 2 Load Schematic 4 | . . . . . . . . 2 . 1 1 Build 4 | . . . . . . . . 2 . 1 1 Repair Station Hacks 5 | . 1 . 2 . . . . 2 . . . Scan Component 3 | . 1 . 1 . . . . 1 . . . Repair 2 | . . . 1 . . . . 1 . . . Recycling Unit Hacks 10 | . 3 . 1 . . . 1 2 . 3 . Process 2 | . 1 . . . . . . 1 . . . Retrieve Matter 2 | . 1 . . . . . . 1 . . . Retrieve Components 6 | . 1 . 1 . . . 1 . . 3 . Scanalyzer 15 | . . . . . . . 4 8 . 1 2 Insert Component 7 | . . . . . . . 2 3 . 1 1 Analyze 8 | . . . . . . . 2 5 . . 1 Garrison Access Hacks 2 | . . . . . . . . . . 1 1 Seal Access 2 | . . . . . . . . . . 1 1 Unauthorized Hacks 7 | . 1 . 1 . . . 1 1 . 2 1 Terminals 6 | . 1 . 1 . . . 1 1 . 1 1 Botnet 6 | . 1 . 1 . . . 1 1 . 1 1 Fabricators 1 | . . . . . . . . . . 1 . Prioritize 1 | . . . . . . . . . . 1 . Repair Stations . | . . . . . . . . . . . . Recycling Units . | . . . . . . . . . . . . Scanalyzers . | . . . . . . . . . . . . Garrison Access . | . . . . . . . . . . . . Data Cores Recovered . | . . . . . . . . . . . . Used . | . . . . . . . . . . . . Hacking Detections 46 | . 6 . 5 . . . 3 6 . 18 8 Full Trace Events . | . . . . . . . . . . . . Feedback Events . | . . . . . . . . . . . . Feedback Blocked . | . . . . . . . . . . . . Robot Schematics Acquired . | . . . . . . . . . . . . Robots Built . | . . . . . . . . . . . . Matter . | . . . . . . . . . . . . Time . | . . . . . . . . . . . . Total Robot Build Rating . | . . . . . . . . . . . . Part Schematics Acquired 8 | . . . 1 . . . 1 3 . 1 2 Parts Built 8 | . . . . . . . . 4 . 2 2 Matter 518 | . . . . . . . . 248 . 146 124 Time 129 | . . . . . . . . 62 . 36 31 Total Part Build Rating 18 | . . . . . . . . 8 . 6 4 Parts Repaired 2 | . . . 1 . . . . 1 . . . Time 43 | . . . 13 . . . . 30 . . . Parts Recycled . | . . . . . . . . . . . . Recycled Matter 26 | . 7 . . . . . . 19 . . . Retrieved Matter 26 | . 7 . . . . . . 19 . . . Retrieved Components 10 | . 4 . 3 . . . . . . 3 . Parts Scanalyzed 5 | . . . . . . . 2 2 . . 1 Part Schematics Acquired 5 | . . . . . . . 1 3 . . 1 Parts Damaged 1 | . . . . . . . . 1 . . . Bothacking | -11 -10 -10 -9 -9 -9 -8 -8 -7 -7 -7 -6 ------------ Run | Scr Mat Min Mat Min Exi Min Mat Fac Was Fac Fac Used RIF Installer . | . . . . . . . . . . . . Robots Hacked . | . . . . . . . . . . . . Non-combat . | . . . . . . . . . . . . Combat . | . . . . . . . . . . . . Robot Hacks Applied . | . . . . . . . . . . . . Relay Couplers Released . | . . . . . . . . . . . . Robots Rewired . | . . . . . . . . . . . . Allies Hacked . | . . . . . . . . . . . . Hacks Repelled . | . . . . . . . . . . . . Allies | -11 -10 -10 -9 -9 -9 -8 -8 -7 -7 -7 -6 -------- Run | Scr Mat Min Mat Min Exi Min Mat Fac Was Fac Fac Total Allies 5 | . . 5 . . . . . . . . . Largest Group 5 | . . 5 4 . . . . . . . . Highest-Rated Group 81 | . . 81 71 . . . . . . . . Highest-Rated Ally 31 | . . 31 31 . . . . . . . . Total Orders . | . . . . . . . . . . . . Ally Attacks 57 | . . 15 42 . . . . . . . . Total Damage 705 | . . 197 508 . . . . . . . . Kills 9 | . . 4 5 . . . . . . . . Allies Corrupted . | . . . . . . . . . . . . Allies Melted . | . . . . . . . . . . . . Intel | -11 -10 -10 -9 -9 -9 -8 -8 -7 -7 -7 -6 ------- Run | Scr Mat Min Mat Min Exi Min Mat Fac Was Fac Fac Robot Analysis Total . | . . . . . . . . . . . . Derelict Logs Recovered . | . . . . . . . . . . . . Drone Launches . | . . . . . . . . . . . . Drone Recoveries . | . . . . . . . . . . . . Exploration | -11 -10 -10 -9 -9 -9 -8 -8 -7 -7 -7 -6 ------------- Run | Scr Mat Min Mat Min Exi Min Mat Fac Was Fac Fac Turns Passed 8571 | 15 478 517 750 401 292 230 540 1153 235 2830 1130 Spaces Moved 7899 | 19 504 465 546 411 320 229 418 939 265 2584 1199 Core 998 | 19 167 . . . . . . . 80 326 406 Treads . | . . . . . . . . . . . . Legs . | . . . . . . . . . . . . Wheels 6901 | . 337 465 546 411 320 229 418 939 185 2258 793 Hover . | . . . . . . . . . . . . Flight . | . . . . . . . . . . . . Fastest Speed 50 | 50 50 80 90 90 90 90 80 90 50 50 50 Average Speed 86 | 50 70 80 90 90 90 90 81 97 84 90 76 Slowest Speed 110 | 50 80 80 100 90 90 90 90 100 100 110 110 Overloaded Moves . | . . . . . . . . . . . . Propulsion Burnouts . | . . . . . . . . . . . . Robots Hopped . | . . . . . . . . . . . . Cave-ins Triggered . | . . . . . . . . . . . . Exploration Rate (%) 55 | 3 84 69 52 83 70 61 32 31 79 61 37 Regions Visited 11 Branch Regions 4 Pre-discovered Areas 2 | . . . . 1 1 . . . . . . Known Exits Taken 8 | . 1 1 1 1 1 1 1 . . 1 . Unknown Exits Taken 1 | 1 . . . . . . . . . . . Scrap Searched . | . . . . . . . . . . . . Spaces Dug 142 | . 11 . 11 . . . . 41 . 8 71 Terrain Destroyed 1191 | . 113 82 120 . . . 139 169 . 312 256 Melee . | . . . . . . . . . . . . Projectile . | . . . . . . . . . . . . AOE 1191 | . 113 82 120 . . . 139 169 . 312 256 Terrain Rammed . | . . . . . . . . . . . . Walls Destroyed . | . . . . . . . . . . . . Machines Disabled . | . . . . . . . . . . . . Actions | -11 -10 -10 -9 -9 -9 -8 -8 -7 -7 -7 -6 --------- Run | Scr Mat Min Mat Min Exi Min Mat Fac Was Fac Fac Total 9207 | 23 600 594 723 429 324 253 574 1126 276 2926 1359 Wait 567 | . 16 102 66 4 . 22 77 68 3 146 63 Move 7889 | 18 503 464 545 410 319 228 417 939 264 2583 1199 Hop . | . . . . . . . . . . . . Pick Up 71 | 4 7 5 15 1 2 1 9 9 1 15 2 Fast Attach 55 | 1 7 1 5 . . . 5 3 . 26 7 Attach 36 | . 3 2 4 . . . 6 3 1 7 10 Detach 27 | . . . 4 . . . 3 . . 8 12 Swap 103 | . 2 5 17 4 1 . 15 18 2 35 4 Drop 86 | . 5 2 16 3 2 1 11 13 5 20 8 Fire 305 | . 29 13 51 7 . 1 31 40 . 86 47 Melee . | . . . . . . . . . . . . Ram 35 | . 28 . . . . . . . . . 7 Kick . | . . . . . . . . . . . . Crush . | . . . . . . . . . . . . Escape Stasis 33 | . . . . . . . . 33 . . . Rewire . | . . . . . . . . . . . . Trap . | . . . . . . . . . . . . Miscellaneous . | . . . . . . . . . . . . Route ------- -11/Scrapyard -10/Materials (discovered 3 exits: *Mat / *Min x2) -10/Mines (discovered 2 exits: *Mat x2) -9/Materials (discovered 5 exits: *Mat x2 / *Min / Sto x2) -9/Mines (discovered 3 exits: *Mat x2 / *Exi) -9/Exiles -8/Mines -8/Materials -7/Factory (discovered 3 exits: *Fac / *Low x2) -7/Waste -7/Factory (discovered 4 exits: *Fac x4) -6/Factory (discovered 2 exits: [*Fac] / [*Low]) History --------- Turn | Location | Event 6 | -11/Scrapyard | Discovered new exit (range 16) 16 | -11/Scrapyard | Entered Materials 98 | -10/Materials | Discovered new exit (range 15) 112 | -10/Materials | Identified exit to Mines 179 | -10/Materials | Discovered new exit (range 10) 262 | -10/Materials | Core integrity fell below 50% 302 | -10/Materials | Lost 3 parts (2n1w) 311 | -10/Materials | Build established: Mutant 494 | -10/Materials | Entered Mines 716 | -10/Mines | Build established: Scavenger-Mutant 736 | -10/Mines | Discovered new exit (range 8) 740 | -10/Mines | Identified exit to Materials 742 | -10/Mines | Assisted by bots powering up and referring to "LRC-V3" 798 | -10/Mines | Discovered exit to Materials (range 8) 884 | -10/Mines | Core integrity fell below 20% 1011 | -10/Mines | Entered Materials 1011 | -9/Materials | Accompanied by 4 allies 1011 | -9/Materials | Evolved 2 slots: Utility x1, Weapon x1 1016 | -9/Materials | Led the pair of lost Derelicts to an unsafe place 1344 | -9/Materials | Discovered new exit (range 16) 1377 | -9/Materials | Repaired Wheel 1685 | -9/Materials | Discovered new exit (range 15) 1686 | -9/Materials | Identified exit to Mines 1686 | -9/Materials | Identified exit to Storage 1761 | -9/Materials | Entered Mines 1823 | -9/Mines | Discovered new exit (range 5) 1826 | -9/Mines | Identified exit to Materials 1909 | -9/Mines | Received a Rocket Launcher from a helpful Derelict 1940 | -9/Mines | Learned location of Storage (-9) 2000 | -9/Mines | Discovered exit to Materials (range 12) 2019 | -9/Mines | Deemed a non-threat by the Exiles lab entrance 2019 | -9/Mines | Discovered new exit (range 5) 2161 | -9/Mines | Identified exit to Exiles 2162 | -9/Mines | Entered Exiles 2185 | -9/Exiles | Met 8R-AWN 2199 | -9/Exiles | Met EX-HEX 2240 | -9/Exiles | Met EX-DEC 2306 | -9/Exiles | Learned location of Zion (-6) 2326 | -9/Exiles | Met EX-BIN 2337 | -9/Exiles | Aligned with FarCom system 2338 | -9/Exiles | Given EX-Vault access code 2358 | -9/Exiles | Opened EX-Vault 2386 | -9/Exiles | Warned to stay clear of 0b10 Research branches 2443 | -9/Exiles | Discovered new exit (range 14) 2453 | -9/Exiles | Identified exit to Mines 2454 | -9/Exiles | Entered Mines 2559 | -8/Mines | Discovered exit to Materials (range 6) 2684 | -8/Mines | Entered Materials 2684 | -8/Materials | Evolved 2 slots: Propulsion x2 2824 | -8/Materials | Garrison activated, responded to threat 3176 | -8/Materials | Discovered new exit (range 3) 3177 | -8/Materials | Identified exit to Factory 3224 | -8/Materials | Entered Factory 3224 | -7/Factory | Evolved 2 slots: Power x1, Utility x1 3473 | -7/Factory | Fabricated Arm. Wheel (x2) 3509 | -7/Factory | Fabricated Arm. Wheel (x2) 3620 | -7/Factory | Identified exit to Lower Caves 3754 | -7/Factory | Repaired Adv. EMP Blaster 4140 | -7/Factory | Discovered new exit (range 14) 4162 | -7/Factory | Identified exit to Factory 4377 | -7/Factory | Sucked down chute 4377 | -7/Factory | Entered Waste 4398 | -7/Waste | Spotted C-40 Crusher 4401 | -7/Waste | Spotted C-40 Crusher 4424 | -7/Waste | Spotted C-40 Crusher 4461 | -7/Waste | Spotted C-40 Crusher 4473 | -7/Waste | Spotted C-40 Crusher 4523 | -7/Waste | Spotted C-40 Crusher 4568 | -7/Waste | Crushed by Compactor (1 part destroyed, 2 dropped) 4569 | -7/Waste | Crushed by Compactor (1 part destroyed, 1 dropped) 4571 | -7/Waste | Crushed by Compactor (1 part destroyed, 1 dropped) 4571 | -7/Waste | Crushed by Compactor (1 part destroyed, 2 dropped) 4572 | -7/Waste | Crushed by Compactor (1 part destroyed, 2 dropped) 4598 | -7/Waste | Discovered new exit (range 11) 4603 | -7/Waste | Lost 6 parts (1p3n1u1w) 4612 | -7/Waste | Entered Factory 5135 | -7/Factory | Build established: Mutant 5337 | -7/Factory | Discovered exit to Factory (range 5) 5666 | -7/Factory | Fabricated Lgt. Nuclear Core (x2) 5772 | -7/Factory | Discovered exit to Factory (range 16) 6134 | -7/Factory | Discovered exit to Factory (range 11) 6233 | -7/Factory | Build established: Scavenger-Mutant 6438 | -7/Factory | Discovered exit to Factory (range 14) 7012 | -7/Factory | First assault squad dispatched 7193 | -7/Factory | Garrison activated, responded to threat 7233 | -7/Factory | Lost 6 parts (1p4n1w) 7442 | -7/Factory | Entered another Factory area 7442 | -6/Factory | Evolved 2 slots: Propulsion x1, Utility x1 7498 | -6/Factory | Build established: Mutant 7649 | -6/Factory | Fabricated Arm. Wheel (x2) 7792 | -6/Factory | First assault squad dispatched 7822 | -6/Factory | Build established: Scavenger-Mutant 7938 | -6/Factory | Garrison activated, responded to threat 8105 | -6/Factory | Discovered new exit (range 16) 8107 | -6/Factory | Lost 3 parts (1p1n1u) 8354 | -6/Factory | Lost 6 parts (3n3u) 8357 | -6/Factory | Discovered new exit (range 6) 8370 | -6/Factory | Core integrity fell below 50% 8458 | -6/Factory | Spotted B-75 Beast 8463 | -6/Factory | Core integrity fell below 20% 8572 | -6/Factory | Self-destructed Last Messages --------------- 08491_ Acquired 21 matter. 08535_ U-05 Engineer builds a Wall. 08536_ Slammed into U-05 Engineer. 08536_ Penetrated by Slug. 08537_ Slammed into U-05 Engineer. 08537_ U-05 Engineer destroyed. 08538_ Acquired 26 matter. 08538_ K-01 Serf collects debris. 08540_ Slammed into R-10 Processor. 08546_ Slammed into K-01 Serf. 08546_ K-01 Serf destroyed. 08547_ Acquired 13 matter. 08547_ Extracted 50 matter. 08548_ Slammed into K-01 Serf. 08548_ K-01 Serf knocked back. 08549_ Slammed into R-10 Processor. 08560_ Acquired Imp. Grenade Launcher. 08569_ The unstable cave ceiling collapses. 08571_ Slug penetrates A-15 Conveyor. 08571_ Penetrated by Slug. Map ----- +----------------------------------------------------+ | ?????????????????????????????????????????????????? | | ?????????????????????????????????????????????????? | | ?????????????????????????????????????????????????? | | ?????????????????????????????????????????????????? | | ?????????????????????????????????????????????????? | | ?????????????????????????????????????????????????? | | ?????????????????????????????????????????????????? | | ?????????????????????????????????????????????????? | | ?????????????????????????????????????????????????? | | ???????????????????????????????gg????????????????? | | ??????????????????????????????g??????????????????? | | ?????????????????????????????????????????????????? | | ?????????????????????????????????????????????????? | | ?????????????????????????????????????????????????? | | ?????????????????????????????????????????????????? | | ?????????????????????????????????????????????????? | | ?????????????????????????????????????????????????? | | ?????????????????????????????????????????????????? | | ?????????????????????##############??????????????? | | ???????????????????# #??????????????? | | #??????????????????# #??????????????? | | #???# ]????????????# #??????????????? | | #???# ???????????# #??????????????? | | #???? ??????????# #??????????????? | | #????? ??????????# #??????????????? | | #???# "?????????# @ # ?????????????? | | #???# ?????????# # ?????????????? | | #????? ] ????????# ] # "????????????? | | #?????? ???????# # "????????????? | | #???????? ?????# # "????????????? | | ###########+####### # ????????????? | | ##### ####+#####+####???? | | A ???? | | #### ???? | | # # ???? | | ####h ????? | | #################??#h# ### ????? | | ???????????????????# ##??# k ######?????? | | ???????????????????#!#???# #??????????? | | ???????????????????# #???# #??????????? | | ###########????????#=#???# #??????????? | | #????????# #???# #??????????? | | ##???????# #???# #??????????? | | ##??????# #???# #??????????? | | ] #??????# #???# ##########????????? | | #??????# #???# #??? #????????? | | #??????# #???# #???]] #????????? | | ######### #???# #?? ]] #????????? | | =! *= #???# # #????????? | | ########/##### + #????????? | +----------------------------------------------------+ Best States ------------- Heat Dissipation 37 Energy Generation 27 Energy Capacity 480 Matter Stores 300 Matter Capacity 300 Sight Range 16 Terrain Scan Density 10 Cloak Strength 2 Armor Coverage 675 Evasion (%) 50 Item Schematics ----------------- Arm. Wheel | -9/Materials | Hacked Lgt. Nuclear Core | -8/Materials | Scanalyzed Adv. EMP Blaster | -7/Factory | Scanalyzed Hvy. Rocket Launcher | -7/Factory | Scanalyzed Missile Launcher | -7/Factory | Scanalyzed Lrn. Sensor Array | -7/Factory | Hacked Med. Storage Unit | -6/Factory | Scanalyzed Nuclear Pulse Thruster | -6/Factory | Hacked Robot Schematics ------------------ None Fabricated ------------ Arm. Wheel | x2 | -7/Factory Arm. Wheel | x2 | -7/Factory Lgt. Nuclear Core | x2 | -7/Factory Arm. Wheel | x2 | -6/Factory Alien Tech Used ----------------- None Achievements -------------- None Challenges ------------ None Game ------ Seed ImpactShockKatana Manual? 0 Play Time 02:48:59 Cumulative 352.3 hours Start 2020.12.31 @ 23:36:25 End 2021.01.02 @ 22:08:59 Sessions 4 Manual Loads 0 Difficulty Rogue Special Mode AFD2018/Launchers Game No. 142 Rogue 106 Adventurer 36 Explorer 0 Win Type - Total 11 Types 11/0/0/0/0/0/0/0/0 Lore% 52 Gallery% 58 Achievement% 43 Wizard Run 0 Options --------- ASCII 0 Keyboard 1 Movement Vi Keybinds 0 Fullscreen 1 Font 18/Terminus Map View 76x50 Tactical HUD 1 Map Filters NONE Filters NONE Steam 0 RUN: 875b8607-089d-4289-9799-1f6561b30bd0